Workbook

Sheet PV field Calculator
B1: Project Name :
B2: Customer :
B3: Date :
A5: 1. Module features
B7: Height : | C7: 1684 | E7: =$AJ$37&" :" -> Junction Box : | F7: Single
B8: Width : | C8: 1002 | E8: =$AK$37&" :" -> Rear support bar(s) : | F8: NO
B9: Thickness : | C9: 35
A10: 2. Components data : Tray(s) & clamps references
C12: =AJ42 -> Portrait | D12: =AJ43 -> Landscape
B13: GSE references | C13: 1710_1005 | D13: Tray(s) selection
B14: Clamps | C14: =INDEX(rech_etrier,MATCH($C$13,Ref_plaques,0),MATCH($C$9,Epaisseur_module__mm,0)) -> H21 | D14: =INDEX(rech_etrier,MATCH($D$13,Ref_plaques,0),MATCH($C$9,Epaisseur_module__mm,0)) -> #N/A
B15: Ref. Height (mm) | C15: =VLOOKUP($C$13,base_po,7,0) -> 1710 | D15: =VLOOKUP($D$13,base_pa,7,0) -> #N/A
B16: Ref. Width (mm) | C16: =VLOOKUP($C$13,base_po,8,0) -> 1005 | D16: =VLOOKUP($D$13,base_pa,8,0) -> #N/A
B17: Graduation (mm) | C17: =IF((C7-C15)>0,MROUND(C7-C15,5),0) -> 0 | D17: =IF((C8-D15)>0,MROUND(C8-D15,5),0) -> #N/A
B18: Rows spacing (mm) | C18: =10-(C7-MROUND(C15,5)-C17) -> 36 | D18: =10-(C8-MROUND(D15,5)-D17) -> #N/A
A20: 3. PV-Field data
B22: Configuration | C22: Rows | D22: Columns
B23: Portrait | C23: 2 | D23: 6
B25: Field dimensions
D26: Height (m)
B27: GSE plates only (A+B) | D27: =((MROUND(HLOOKUP($B$23,données_plaques,4,0),5)+HLOOKUP($B$23,données_plaques,6,0)+10)*$C$23+(160-HLOOKUP($B$23,données_plaques,6,0)))/1000 -> 3.6
B28: Layout to the gutter (A+B+C+D) | D28: =D27+0.15+0.05 -> 3.8
B29: Layout in the center (A+B+C+D+E) | D29: =D28+0.1 -> 3.9
D30: Length (m)
B31: GSE plates only (≈F) | D31: =((HLOOKUP($B$23,données_plaques,5,0)+36.5)*$D$23+30)/1000 -> 6.279
B32: w/ lateral flashings (F+2G) | D32: =((HLOOKUP($B$23,données_plaques,5,0)+36.5)*$D$23+165*2)/1000 -> 6.579
E36: -50 | F36: 40 | G36: -5 | H36: 0 | N36: Etriers
D37: Référence | E37: Tolérances dimensionnelles | J37: Dimensions de référence de la plaque GSE | N37: Epaisseur module (mm) | AJ37: Junction Box | AK37: Rear support bar(s)
A38: Base Plaque | D38: PLAQUE | E38: HAUTEUR MINIMUM | F38: HAUTEUR MAXIMUM | G38: LARGEUR MINIMUM | H38: LARGEUR MAXIMUM | J38: Hauteur ref | K38: Larg ref | N38: 30 | O38: 31 | P38: 32 | Q38: 33 | R38: 34 | S38: 35 | T38: 36 | U38: 37 | V38: 38 | W38: 39 | X38: 40 | Y38: 41 | Z38: 42 | AA38: 43 | AB38: 44 | AC38: 45 | AD38: 46 | AE38: 47 | AF38: 48 | AG38: 49 | AH38: 50 | AJ38: Single | AK38: YES
B39: ="OK"&IF(C39="faux",0,COUNTIF($C$39:C39,C39)) -> OK0 | C39: =IF($F$7=$AJ$39,"FAUX",IF(AND($C$7>=E39,$C$7<=F39,$C$8>=G39,$C$8<=H39,$C$9>=35),"OK","FAUX")) -> FAUX | D39: 1559 / 1046 | E39: =$J39+E$36 -> 1525 | F39: 1615 | G39: =$K39+G$36 -> 1041 | H39: 1046 | J39: 1575 | K39: 1046 | L39: PORTRAIT | S39: H16 | T39: H16 | U39: H16 | V39: H19 | W39: H19 | X39: H21 | Y39: H21 | Z39: H23 | AA39: H23 | AB39: H23 | AC39: H26 | AD39: H26 | AE39: H27 | AF39: H27 | AH39: H31 | AJ39: Split | AK39: NO
B40: OK0 | C40: FAUX | D40: 1575 / 1053 | E40: =$J40+E$36 -> 1525 | F40: 1615 | G40: =$K40+G$36 -> 1048 | H40: 1053 | J40: 1575 | K40: 1053 | S40: H16 | T40: H16 | U40: H16 | V40: H19 | W40: H19 | X40: H21 | Y40: H21 | Z40: H23 | AA40: H23 | AB40: H23 | AC40: H26 | AD40: H26 | AE40: H27 | AF40: H27 | AH40: H31
B41: OK0 | C41: FAUX | D41: 1575 / 1082 | E41: =$J41+E$36 -> 1525 | F41: 1615 | G41: =$K41+G$36 -> 1077 | H41: 1082 | J41: 1575 | K41: 1082 | S41: H16 | T41: H16 | U41: H16 | V41: H19 | W41: H19 | X41: H21 | Y41: H21 | Z41: H23 | AA41: H23 | AB41: H23 | AC41: H26 | AD41: H26 | AE41: H27 | AF41: H27 | AH41: H31
B42: OK0 | C42: FAUX | D42: 1580 / 808 | E42: =$J42+E$36 -> 1530 | F42: 1620 | G42: =$K42+G$36 -> 803 | H42: 808 | J42: 1580 | K42: 808 | S42: H16 | T42: H16 | U42: H16 | V42: H19 | W42: H19 | X42: H21 | Y42: H21 | Z42: H23 | AA42: H23 | AB42: H23 | AC42: H26 | AD42: H26 | AE42: H27 | AF42: H27 | AH42: H31 | AJ42: Portrait
B43: OK0 | C43: FAUX | D43: 1640 / 992 | E43: =$J43+E$36 -> 1590 | F43: 1680 | G43: =$K43+G$36 -> 987 | H43: 992 | J43: 1640 | K43: 992 | S43: H16 | T43: H16 | U43: H16 | V43: H19 | W43: H19 | X43: H21 | Y43: H21 | Z43: H23 | AA43: H23 | AB43: H23 | AC43: H26 | AD43: H26 | AE43: H27 | AF43: H27 | AH43: H31 | AJ43: Landscape
B44: OK0 | C44: FAUX | D44: 1640 / 1001 | E44: =$J44+E$36 -> 1590 | F44: 1680 | G44: =$K44+G$36 -> 996 | H44: 1001 | J44: 1640 | K44: 1001 | S44: H16 | T44: H16 | U44: H16 | V44: H19 | W44: H19 | X44: H21 | Y44: H21 | Z44: H23 | AA44: H23 | AB44: H23 | AC44: H26 | AD44: H26 | AE44: H27 | AF44: H27 | AH44: H31
B45: OK0 | C45: =IF($F$7=$AJ$39,"FAUX",IF(AND($C$7>=E45,$C$7<=F45,$C$8>=G45,$C$8<=H45,$C$9>=32),"OK","FAUX")) -> FAUX | D45: 1640 / 1001 P33 | E45: =$J45+E$36 -> 1590 | F45: 1680 | G45: =$K45+G$36 -> 996 | H45: 1001 | J45: 1640 | K45: 1001 | P45: H16 | Q45: H16 | R45: H16 | S45: H19 | T45: H19 | U45: H21 | V45: H21 | W45: H23 | X45: H23 | Y45: H23 | Z45: H26 | AA45: H26 | AB45: H27 | AC45: H27 | AE45: H31 | AF45: H31 | AG45: H31
B46: OK0 | C46: =IF($F$7=$AJ$39,"FAUX",IF(AND($C$7>=E46,$C$7<=F46,$C$8>=G46,$C$8<=H46,$C$9>=35),"OK","FAUX")) -> FAUX | D46: 1686 / 1016 | E46: =$J46+E$36 -> 1635 | F46: 1725 | G46: =$K46+G$36 -> 1011 | H46: 1016 | J46: 1685 | K46: 1016 | S46: H16 | T46: H16 | U46: H16 | V46: H19 | W46: H19 | X46: H21 | Y46: H21 | Z46: H23 | AA46: H23 | AB46: H23 | AC46: H26 | AD46: H26 | AE46: H27 | AF46: H27 | AH46: H31
B47: OK0 | C47: =IF(AND($C$7>=E47,$C$7<=F47,$C$8>=G47,$C$8<=H47,$C$9>=30),"OK","FAUX") -> FAUX | D47: 1710_995 | E47: =$J47+E$36 -> 1660 | F47: 1750 | G47: =$K47+G$36 -> 990 | H47: 995 | J47: 1710 | K47: 995 | N47: H16 | O47: H16 | P47: H16 | Q47: H19 | R47: H19 | S47: H21 | T47: H21 | U47: H23 | V47: H23 | W47: H23 | X47: H26 | Y47: H26 | Z47: H27 | AA47: H27 | AC47: H31 | AD47: H31 | AE47: H31
B48: OK0 | C48: FAUX | D48: 1710_1000 | E48: =$J48+E$36 -> 1660 | F48: 1750 | G48: =$K48+G$36 -> 995 | H48: 1000 | J48: 1710 | K48: 1000 | N48: H16 | O48: H16 | P48: H16 | Q48: H19 | R48: H19 | S48: H21 | T48: H21 | U48: H23 | V48: H23 | W48: H23 | X48: H26 | Y48: H26 | Z48: H27 | AA48: H27 | AC48: H31 | AD48: H31 | AE48: H31
B49: OK1 | C49: OK | D49: 1710_1005 | E49: =$J49+E$36 -> 1660 | F49: 1750 | G49: =$K49+G$36 -> 1000 | H49: 1005 | J49: 1710 | K49: 1005 | N49: H16 | O49: H16 | P49: H16 | Q49: H19 | R49: H19 | S49: H21 | T49: H21 | U49: H23 | V49: H23 | W49: H23 | X49: H26 | Y49: H26 | Z49: H27 | AA49: H27 | AC49: H31 | AD49: H31 | AE49: H31
B50: OK0 | C50: FAUX | D50: 1710_1010 | E50: =$J50+E$36 -> 1660 | F50: 1750 | G50: =$K50+G$36 -> 1005 | H50: 1010 | J50: 1710 | K50: 1010 | N50: H16 | O50: H16 | P50: H16 | Q50: H19 | R50: H19 | S50: H21 | T50: H21 | U50: H23 | V50: H23 | W50: H23 | X50: H26 | Y50: H26 | Z50: H27 | AA50: H27 | AC50: H31 | AD50: H31 | AE50: H31
B51: OK0 | C51: FAUX | D51: 1710_1020 | E51: =$J51+E$36 -> 1660 | F51: 1750 | G51: =$K51+G$36 -> 1015 | H51: 1020 | J51: 1710 | K51: 1020 | N51: H16 | O51: H16 | P51: H16 | Q51: H19 | R51: H19 | S51: H21 | T51: H21 | U51: H23 | V51: H23 | W51: H23 | X51: H26 | Y51: H26 | Z51: H27 | AA51: H27 | AC51: H31 | AD51: H31 | AE51: H31
B52: OK0 | C52: FAUX | D52: 1710_1025 | E52: =$J52+E$36 -> 1660 | F52: 1750 | G52: =$K52+G$36 -> 1020 | H52: 1025 | J52: 1710 | K52: 1025 | N52: H16 | O52: H16 | P52: H16 | Q52: H19 | R52: H19 | S52: H21 | T52: H21 | U52: H23 | V52: H23 | W52: H23 | X52: H26 | Y52: H26 | Z52: H27 | AA52: H27 | AC52: H31 | AD52: H31 | AE52: H31
B53: OK0 | C53: FAUX | D53: 1710_1030 | E53: =$J53+E$36 -> 1660 | F53: 1750 | G53: =$K53+G$36 -> 1025 | H53: 1030 | J53: 1710 | K53: 1030 | N53: H16 | O53: H16 | P53: H16 | Q53: H19 | R53: H19 | S53: H21 | T53: H21 | U53: H23 | V53: H23 | W53: H23 | X53: H26 | Y53: H26 | Z53: H27 | AA53: H27 | AC53: H31 | AD53: H31 | AE53: H31
B54: OK0 | C54: FAUX | D54: 1710_1040 | E54: =$J54+E$36 -> 1660 | F54: 1750 | G54: =$K54+G$36 -> 1035 | H54: 1040 | J54: 1710 | K54: 1040 | N54: H16 | O54: H16 | P54: H16 | Q54: H19 | R54: H19 | S54: H21 | T54: H21 | U54: H23 | V54: H23 | W54: H23 | X54: H26 | Y54: H26 | Z54: H27 | AA54: H27 | AC54: H31 | AD54: H31 | AE54: H31
B55: OK0 | C55: FAUX | D55: 1710_1050 | E55: =$J55+E$36 -> 1660 | F55: 1750 | G55: =$K55+G$36 -> 1045 | H55: 1050 | J55: 1710 | K55: 1050 | N55: H16 | O55: H16 | P55: H16 | Q55: H19 | R55: H19 | S55: H21 | T55: H21 | U55: H23 | V55: H23 | W55: H23 | X55: H26 | Y55: H26 | Z55: H27 | AA55: H27 | AC55: H31 | AD55: H31 | AE55: H31
B56: OK0 | C56: FAUX | D56: 1710_1055 | E56: =$J56+E$36 -> 1660 | F56: 1750 | G56: =$K56+G$36 -> 1050 | H56: 1055 | J56: 1710 | K56: 1055 | N56: H16 | O56: H16 | P56: H16 | Q56: H19 | R56: H19 | S56: H21 | T56: H21 | U56: H23 | V56: H23 | W56: H23 | X56: H26 | Y56: H26 | Z56: H27 | AA56: H27 | AC56: H31 | AD56: H31 | AE56: H31
B57: OK0 | C57: FAUX | D57: 1710_1060 | E57: =$J57+E$36 -> 1660 | F57: 1750 | G57: =$K57+G$36 -> 1055 | H57: 1060 | J57: 1710 | K57: 1060 | N57: H16 | O57: H16 | P57: H16 | Q57: H19 | R57: H19 | S57: H21 | T57: H21 | U57: H23 | V57: H23 | W57: H23 | X57: H26 | Y57: H26 | Z57: H27 | AA57: H27 | AC57: H31 | AD57: H31 | AE57: H31
B58: ="OK"&IF(C58="faux",0,COUNTIF($C$58:C58,C58)) -> OK0 | C58: =IF($F$8=$AK$38,"FAUX",IF($F$7=$AJ$39,"FAUX",IF(AND($C$8>=E58,$C$8<=F58,$C$7>=G58,$C$7<=H58,$C$9>=35),"OK","FAUX"))) -> FAUX | D58: 1559 / 1046 | E58: =$J58+E$36 -> 1032 | F58: 1122 | G58: =$K58+G$36 -> 1554 | H58: 1559 | J58: 1082 | K58: 1559 | L58: PAYSAGE | S58: H16 | T58: H16 | U58: H16 | V58: H19 | W58: H19 | X58: H21 | Y58: H21 | Z58: H23 | AA58: H23 | AB58: H23 | AC58: H26 | AD58: H26 | AE58: H27 | AF58: H27 | AH58: H31
B59: OK0 | C59: FAUX | D59: 1575 / 1082 | E59: 1032 | F59: 1122 | G59: =$K59+G$36 -> 1570 | H59: 1575 | J59: 1082 | K59: 1575 | S59: H16 | T59: H16 | U59: H16 | V59: H19 | W59: H19 | X59: H21 | Y59: H21 | Z59: H23 | AA59: H23 | AB59: H23 | AC59: H26 | AD59: H26 | AE59: H27 | AF59: H27 | AH59: H31
B60: OK0 | C60: FAUX | D60: 1580 / 808 | E60: 758 | F60: 848 | G60: =$K60+G$36 -> 1575 | H60: 1580 | J60: 808 | K60: 1580 | S60: H16 | T60: H16 | U60: H16 | V60: H19 | W60: H19 | X60: H21 | Y60: H21 | Z60: H23 | AA60: H23 | AB60: H23 | AC60: H26 | AD60: H26 | AE60: H27 | AF60: H27 | AH60: H31
B61: OK0 | C61: FAUX | D61: 1640 / 992 | E61: 942 | F61: 1032 | G61: =$K61+G$36 -> 1635 | H61: 1640 | J61: 992 | K61: 1640 | S61: H16 | T61: H16 | U61: H16 | V61: H19 | W61: H19 | X61: H21 | Y61: H21 | Z61: H23 | AA61: H23 | AB61: H23 | AC61: H26 | AD61: H26 | AE61: H27 | AF61: H27 | AH61: H31
B62: OK0 | C62: FAUX | D62: 1650 / 992 | E62: 942 | F62: 1032 | G62: =$K62+G$36 -> 1645 | H62: 1650 | J62: 992 | K62: 1650 | S62: H16 | T62: H16 | U62: H16 | V62: H19 | W62: H19 | X62: H21 | Y62: H21 | Z62: H23 | AA62: H23 | AB62: H23 | AC62: H26 | AD62: H26 | AE62: H27 | AF62: H27 | AH62: H31
B63: OK0 | C63: FAUX | D63: 1660 / 992 | E63: 942 | F63: 1032 | G63: =$K63+G$36 -> 1655 | H63: 1660 | J63: 992 | K63: 1660 | S63: H16 | T63: H16 | U63: H16 | V63: H19 | W63: H19 | X63: H21 | Y63: H21 | Z63: H23 | AA63: H23 | AB63: H23 | AC63: H26 | AD63: H26 | AE63: H27 | AF63: H27 | AH63: H31
B64: OK0 | C64: FAUX | D64: 1670 / 992 | E64: 942 | F64: 1032 | G64: =$K64+G$36 -> 1665 | H64: 1670 | J64: 992 | K64: 1670 | S64: H16 | T64: H16 | U64: H16 | V64: H19 | W64: H19 | X64: H21 | Y64: H21 | Z64: H23 | AA64: H23 | AB64: H23 | AC64: H26 | AD64: H26 | AE64: H27 | AF64: H27 | AH64: H31
B65: OK0 | C65: =IF($F$8=$AK$38,"FAUX",IF($F$7=$AJ$39,"FAUX",IF(AND($C$8>=E65,$C$8<=F65,$C$7>=G65,$C$7<=H65,$C$9>=32),"OK","FAUX"))) -> FAUX | D65: 1675 / 992 P33 | E65: 942 | F65: 1032 | G65: =$K65+G$36 -> 1670 | H65: 1675 | J65: 992 | K65: 1675 | P65: H16 | Q65: H16 | R65: H16 | S65: H19 | T65: H19 | U65: H21 | V65: H21 | W65: H23 | X65: H23 | Y65: H23 | Z65: H26 | AA65: H26 | AB65: H27 | AC65: H27 | AE65: H31 | AF65: H31 | AG65: H31
B66: OK0 | C66: =IF($F$8=$AK$38,"FAUX",IF($F$7=$AJ$39,"FAUX",IF(AND($C$8>=E66,$C$8<=F66,$C$7>=G66,$C$7<=H66,$C$9>=35),"OK","FAUX"))) -> FAUX | D66: 1680 / 992 | E66: 942 | F66: 1032 | G66: =$K66+G$36 -> 1675 | H66: 1680 | J66: 992 | K66: 1680 | S66: H16 | T66: H16 | U66: H16 | V66: H19 | W66: H19 | X66: H21 | Y66: H21 | Z66: H23 | AA66: H23 | AB66: H23 | AC66: H26 | AD66: H26 | AE66: H27 | AF66: H27 | AH66: H31
B67: OK1 | C67: OK | D67: 1686 / 1016 | E67: 942 | F67: 1032 | G67: =$K67+G$36 -> 1681 | H67: 1686 | J67: 992 | K67: 1686 | S67: H16 | T67: H16 | U67: H16 | V67: H19 | W67: H19 | X67: H21 | Y67: H21 | Z67: H23 | AA67: H23 | AB67: H23 | AC67: H26 | AD67: H26 | AE67: H27 | AF67: H27 | AH67: H31
B68: OK0 | C68: FAUX | D68: 1700 / 1016 | E68: 942 | F68: 1032 | G68: =$K68+G$36 -> 1695 | H68: 1700 | J68: 992 | K68: 1700 | S68: H16 | T68: H16 | U68: H16 | V68: H19 | W68: H19 | X68: H21 | Y68: H21 | Z68: H23 | AA68: H23 | AB68: H23 | AC68: H26 | AD68: H26 | AE68: H27 | AF68: H27 | AH68: H31
B69: OK0 | C69: =IF($F$8=$AK$38,"FAUX",IF(AND($C$8>=E69,$C$8<=F69,$C$7>=G69,$C$7<=H69,$C$9>=30),"OK","FAUX")) -> FAUX | D69: 1665_1020 | E69: 970 | F69: 1060 | G69: =$K69+G$36 -> 1660 | H69: 1665 | J69: 1020 | K69: 1665 | N69: H16 | O69: H16 | P69: H16 | Q69: H19 | R69: H19 | S69: H21 | T69: H21 | U69: H23 | V69: H23 | W69: H23 | X69: H26 | Y69: H26 | Z69: H27 | AA69: H27 | AC69: H31 | AD69: H31 | AE69: H31
B70: OK0 | C70: FAUX | D70: 1675_1020 | E70: 970 | F70: 1060 | G70: =$K70+G$36 -> 1670 | H70: 1675 | J70: 1020 | K70: 1675 | N70: H16 | O70: H16 | P70: H16 | Q70: H19 | R70: H19 | S70: H21 | T70: H21 | U70: H23 | V70: H23 | W70: H23 | X70: H26 | Y70: H26 | Z70: H27 | AA70: H27 | AC70: H31 | AD70: H31 | AE70: H31
B71: OK0 | C71: FAUX | D71: 1680_1020 | E71: 970 | F71: 1060 | G71: =$K71+G$36 -> 1675 | H71: 1680 | J71: 1020 | K71: 1680 | N71: H16 | O71: H16 | P71: H16 | Q71: H19 | R71: H19 | S71: H21 | T71: H21 | U71: H23 | V71: H23 | W71: H23 | X71: H26 | Y71: H26 | Z71: H27 | AA71: H27 | AC71: H31 | AD71: H31 | AE71: H31
B72: OK2 | C72: OK | D72: 1685_1020 | E72: 970 | F72: 1060 | G72: =$K72+G$36 -> 1680 | H72: 1685 | J72: 1020 | K72: 1685 | N72: H16 | O72: H16 | P72: H16 | Q72: H19 | R72: H19 | S72: H21 | T72: H21 | U72: H23 | V72: H23 | W72: H23 | X72: H26 | Y72: H26 | Z72: H27 | AA72: H27 | AC72: H31 | AD72: H31 | AE72: H31
B73: OK0 | C73: FAUX | D73: 1690_1020 | E73: 970 | F73: 1060 | G73: =$K73+G$36 -> 1685 | H73: 1690 | J73: 1020 | K73: 1690 | N73: H16 | O73: H16 | P73: H16 | Q73: H19 | R73: H19 | S73: H21 | T73: H21 | U73: H23 | V73: H23 | W73: H23 | X73: H26 | Y73: H26 | Z73: H27 | AA73: H27 | AC73: H31 | AD73: H31 | AE73: H31
B74: OK0 | C74: FAUX | D74: 1695_1020 | E74: 970 | F74: 1060 | G74: =$K74+G$36 -> 1690 | H74: 1695 | J74: 1020 | K74: 1695 | N74: H16 | O74: H16 | P74: H16 | Q74: H19 | R74: H19 | S74: H21 | T74: H21 | U74: H23 | V74: H23 | W74: H23 | X74: H26 | Y74: H26 | Z74: H27 | AA74: H27 | AC74: H31 | AD74: H31 | AE74: H31
B75: OK0 | C75: FAUX | D75: 1700_1020 | E75: 970 | F75: 1060 | G75: =$K75+G$36 -> 1695 | H75: 1700 | J75: 1020 | K75: 1700 | N75: H16 | O75: H16 | P75: H16 | Q75: H19 | R75: H19 | S75: H21 | T75: H21 | U75: H23 | V75: H23 | W75: H23 | X75: H26 | Y75: H26 | Z75: H27 | AA75: H27 | AC75: H31 | AD75: H31 | AE75: H31
B76: OK0 | C76: FAUX | D76: 1705_1020 | E76: 970 | F76: 1060 | G76: =$K76+G$36 -> 1700 | H76: 1705 | J76: 1020 | K76: 1705 | N76: H16 | O76: H16 | P76: H16 | Q76: H19 | R76: H19 | S76: H21 | T76: H21 | U76: H23 | V76: H23 | W76: H23 | X76: H26 | Y76: H26 | Z76: H27 | AA76: H27 | AC76: H31 | AD76: H31 | AE76: H31
B77: OK0 | C77: FAUX | D77: 1720_1020 | E77: 970 | F77: 1060 | G77: =$K77+G$36 -> 1715 | H77: 1720 | J77: 1020 | K77: 1720 | N77: H16 | O77: H16 | P77: H16 | Q77: H19 | R77: H19 | S77: H21 | T77: H21 | U77: H23 | V77: H23 | W77: H23 | X77: H26 | Y77: H26 | Z77: H27 | AA77: H27 | AC77: H31 | AD77: H31 | AE77: H31
B78: OK0 | C78: FAUX | D78: 1740_1020 | E78: 970 | F78: 1060 | G78: =$K78+G$36 -> 1735 | H78: 1740 | J78: 1020 | K78: 1740 | N78: H16 | O78: H16 | P78: H16 | Q78: H19 | R78: H19 | S78: H21 | T78: H21 | U78: H23 | V78: H23 | W78: H23 | X78: H26 | Y78: H26 | Z78: H27 | AA78: H27 | AC78: H31 | AD78: H31 | AE78: H31
C80: Réf. Etriers | D80: Epaisseur Min | E80: Epaisseur Max
A81: Base étriers | B81: =IF(AND($C$9>=D81,$C$9<=E81),"OK","FAUX") -> OK | C81: H16 | D81: 31 | E81: 35
B82: FAUX | C82: H19 | D82: 37 | E82: 38
B83: FAUX | C83: H21 | D83: 39 | E83: 40
B84: FAUX | C84: H23 | D84: 41 | E84: 42
B85: FAUX | C85: H27 | D85: 45 | E85: 46
B86: FAUX | C86: H31 | D86: 49 | E86: 50
F88: =AJ42 -> Portrait | G88: =AJ43 -> Landscape
E89: 1 | F89: =IFERROR(IF($F$7="OUI",VLOOKUP("OK"&$E89,rech_po_hc,3,0),VLOOKUP("OK"&$E89,rech_po,3,0)),"") -> 1710_1005 | G89: =IFERROR(IF($F$7="OUI",VLOOKUP("OK"&$E89,rech_pa_hc,3,0),VLOOKUP("OK"&$E89,rech_pa,3,0)),"") -> 1686 / 1016
E90: 2 | F90: =IFERROR(IF($F$7="OUI",VLOOKUP("OK"&$E90,rech_po_hc,3,0),VLOOKUP("OK"&$E90,rech_po,3,0)),"") ->  | G90: =IFERROR(IF($F$7="OUI",VLOOKUP("OK"&$E90,rech_pa_hc,3,0),VLOOKUP("OK"&$E90,rech_pa,3,0)),"") -> 1685_1020
E91: 3 | F91: =IFERROR(IF($F$7="OUI",VLOOKUP("OK"&$E91,rech_po_hc,3,0),VLOOKUP("OK"&$E91,rech_po,3,0)),"") ->  | G91: =IFERROR(IF($F$7="OUI",VLOOKUP("OK"&$E91,rech_pa_hc,3,0),VLOOKUP("OK"&$E91,rech_pa,3,0)),"") -> 
E92: 4 | F92: =IFERROR(IF($F$7="OUI",VLOOKUP("OK"&$E92,rech_po_hc,3,0),VLOOKUP("OK"&$E92,rech_po,3,0)),"") ->  | G92: =IFERROR(IF($F$7="OUI",VLOOKUP("OK"&$E92,rech_pa_hc,3,0),VLOOKUP("OK"&$E92,rech_pa,3,0)),"") -> 
E93: 5 | F93: =IFERROR(IF($F$7="OUI",VLOOKUP("OK"&$E93,rech_po_hc,3,0),VLOOKUP("OK"&$E93,rech_po,3,0)),"") ->  | G93: =IFERROR(IF($F$7="OUI",VLOOKUP("OK"&$E93,rech_pa_hc,3,0),VLOOKUP("OK"&$E93,rech_pa,3,0)),"") -> 

Sheet Feuil2 (hidden)
A1: Portrait | B1: feuil2!C1
A2: Landscape | B2: feuil2!C2
